bitfinex/quotes_BTCUSD_20230113
["timestamp","ask_amount","ask_price","bid_price","bid_amount"]
[1673623811957,7.15018241,19295.0,19294.0,0.21130494]
[1673623812204,7.15018241,19295.0,19294.0,0.27529494]
[1673623812499,7.15018241,19295.0,19294.0,0.001]
[1673623813211,7.23853267,19295.0,19294.0,0.001]
[1673623813463,7.66845041,19295.0,19294.0,0.001]
[1673623813961,7.76774802,19295.0,19294.0,0.001]
[1673623814206,7.24948002,19295.0,19294.0,0.001]
[1673623814999,7.76774802,19295.0,19294.0,0.001]
[1673623815740,7.24948002,19295.0,19294.0,0.06499]
[1673623815989,7.24948002,19295.0,19294.0,0.001]
[1673623816483,7.82423653,19295.0,19294.0,0.001]
[1673623816779,8.19705502,19295.0,19294.0,0.001]
[1673623818039,8.29473874,19295.0,19290.0,0.41472038]
[1673623818281,0.1,19292.0,19288.0,0.10525909]
[1673623818529,1.147022,19291.0,19288.0,0.10525909]
[1673623818845,0.11026,19291.0,19289.0,0.78535768]
[1673623819020,0.51862215,19293.0,19290.0,0.324513]
[1673623819269,0.00027815,19293.0,19291.0,0.324513]
[1673623819517,0.00027815,19293.0,19292.0,0.324513]
[1673623819518,0.07109815,19293.0,19292.0,0.324513]
[1673623819765,0.005,19291.0,19290.0,0.1]
[1673623820016,0.08286413,19293.0,19290.0,1.95651396]
[1673623820266,0.08286413,19293.0,19291.0,0.324513]
[1673623820520,0.08286413,19293.0,19292.0,0.324513]
[1673623820521,0.08306413,19293.0,19292.0,0.324513]
[1673623820769,0.07129815,19293.0,19292.0,0.324513]
[1673623821026,0.09915835,19291.0,19288.0,0.52219456]
[1673623821271,0.09915835,19291.0,19288.0,0.10766418]
[1673623821272,0.11026,19290.0,19288.0,0.10766418]
[1673623821811,0.728667,19290.0,19288.0,0.10766418]
[1673623822054,1.24707,19290.0,19288.0,0.10766418]
[1673623822307,1.13681,19290.0,19288.0,0.10766418]
[1673623822557,0.09292976,19289.0,19288.0,0.10766418]
[1673623822798,0.61135976,19289.0,19288.0,0.10766418]
[1673623823311,0.51843,19289.0,19288.0,0.10766418]
[1673623823561,0.652425,19290.0,19288.0,0.74335363]
[1673623824082,0.652425,19290.0,19280.0,1.15602046]
[1673623824083,3.91386121,19281.0,19280.0,1.15602046]
[1673623824343,1.36958955,19281.0,19280.0,3.24082945]
[1673623824576,1.36958955,19281.0,19280.0,3.59807965]
[1673623824821,1.36958955,19281.0,19280.0,3.07940865]
[1673623825119,1.25932955,19281.0,19280.0,3.62634018]
[1673623825335,1.27332955,19281.0,19280.0,3.07440865]
[1673623825836,1.27332955,19281.0,19280.0,3.67844752]
[1673623826472,1.27332955,19281.0,19280.0,2.99807552]
[1673623826713,1.27332955,19281.0,19280.0,1.96089587]
[1673623826968,1.28732955,19281.0,19280.0,1.63638287]
[1673623827209,1.25932955,19281.0,19280.0,1.63638287]
[1673623827463,1.27332955,19281.0,19280.0,0.324513]
[1673623827718,1.87797455,19281.0,19279.0,0.03191843]
[1673623827978,0.6,19280.0,19279.0,0.03191843]
[1673623828707,0.7,19280.0,19279.0,0.03191843]
[1673623828948,1.218672,19280.0,19279.0,0.03191843]
[1673623829483,0.1,19279.0,19278.0,0.03055836]
[1673623829768,1.2551917,19279.0,19278.0,0.03055836]
[1673623830038,0.1,19278.0,19275.0,0.00251864]
[1673623830277,0.6,19276.0,19275.0,0.00251864]
[1673623830518,0.71026,19276.0,19275.0,0.00251864]
[1673623830770,0.6,19276.0,19275.0,0.00251864]
[1673623831007,1.2364927,19276.0,19275.0,0.00251864]
[1673623831254,1.6450117,19276.0,19275.0,0.00251864]
[1673623831494,0.1,19275.0,19274.0,0.00299328]
[1673623831734,2.9207447,19275.0,19274.0,0.00299328]
[1673623832482,3.2207447,19275.0,19274.0,0.00299328]
[1673623832735,2.9207447,19275.0,19274.0,0.00299328]
[1673623832979,3.2207447,19275.0,19274.0,0.00299328]
[1673623833464,3.3567447,19275.0,19274.0,9.328e-05]
[1673623833717,0.1,19274.0,19273.0,0.00299328]
[1673623833953,0.1,19273.0,19269.0,0.00291302]
[1673623834204,0.6,19270.0,19269.0,0.00291302]
[1673623834447,2.7933157,19270.0,19269.0,0.00291302]
[1673623834702,0.1,19269.0,19268.0,0.00019]
[1673623834922,0.7364927,19269.0,19268.0,0.00019]
[1673623835164,0.1,19268.0,19262.0,0.65195214]
[1673623835411,0.6879327,19266.0,19260.0,0.8934156]
[1673623835660,1.1262327,19261.0,19257.0,1.02326218]
[1673623835948,0.11026,19260.0,19256.0,3.0]
[1673623836203,1.355097,19265.0,19256.0,3.0]
[1673623836204,0.49350123,19266.0,19260.0,0.1608]
[1673623836452,0.64853907,19267.0,19263.0,0.1617]
[1673623836715,0.137,19266.0,19264.0,0.21030494]
[1673623836961,0.137,19266.0,19265.0,0.53481794]
[1673623837240,0.0002,19269.0,19265.0,0.69651794]
[1673623837481,0.62440721,19270.0,19266.0,0.324513]
[1673623837725,0.65250639,19268.0,19267.0,0.324513]
[1673623838002,0.59180186,19266.0,19261.0,0.68018]
[1673623838246,0.80119161,19265.0,19262.0,0.50360533]
[1673623838508,0.11026,19265.0,19262.0,0.50360533]
[1673623838771,0.11026,19265.0,19260.0,0.619198]
[1673623839019,0.11026,19264.0,19260.0,0.619198]
[1673623839276,0.0002,19263.0,19260.0,0.619198]
[1673623839517,0.0002,19263.0,19261.0,0.424513]
[1673623839757,0.0002,19263.0,19262.0,0.843669]
[1673623840299,0.18128,19263.0,19262.0,0.324513]
[1673623840545,0.08502,19263.0,19260.0,0.67921675]
[1673623840784,0.0002,19263.0,19260.0,0.37200494]
[1673623841031,0.0002,19263.0,19262.0,0.1608]
[1673623841270,0.56889975,19266.0,19262.0,0.485313]
[1673623841520,1.11987512,19265.0,19263.0,0.324513]
[1673623841774,1.13287236,19263.0,19260.0,0.54996142]
[1673623842024,0.52053469,19262.0,19260.0,0.54996142]
[1673623842273,0.63079469,19262.0,19260.0,0.54996142]
[1673623842511,0.59700672,19263.0,19260.0,0.54996142]
[1673623842766,0.59700672,19265.0,19261.0,0.9037234]
[1673623843012,0.134,19263.0,19262.0,0.53461794]
[1673623843269,0.134,19263.0,19262.0,1.21457394]
[1673623843519,0.134,19263.0,19262.0,1.104269]
[1673623843770,0.59700672,19266.0,19263.0,0.50641587]
[1673623844011,0.59700672,19263.0,19262.0,0.5808347]
[1673623844249,0.59700672,19265.0,19263.0,0.50762142]
[1673623844492,0.11026,19265.0,19259.0,0.519232]
[1673623844754,0.70726672,19264.0,19261.0,0.69213489]
[1673623845006,0.59700672,19262.0,19261.0,0.69213489]
[1673623845254,0.59700672,19262.0,19258.0,0.10421319]
[1673623845500,0.11026,19261.0,19260.0,0.70283809]
[1673623845746,0.59700672,19262.0,19261.0,0.66698472]
[1673623845998,1.820049,19266.0,19263.0,0.53732021]
[1673623846241,0.0002,19266.0,19265.0,0.161]
[1673623846522,0.0002,19266.0,19265.0,1.75310876]
[1673623847028,0.00014,19266.0,19265.0,1.104979]
[1673623847273,0.59700672,19271.0,19265.0,2.27218476]
[1673623847516,1.11921109,19269.0,19266.0,1.07303276]
[1673623847774,0.52220437,19269.0,19267.0,0.324903]
[1673623848022,0.52220437,19269.0,19268.0,0.324903]
[1673623848266,0.52220437,19269.0,19267.0,0.1]
[1673623848522,1.14569334,19270.0,19267.0,0.619017]
[1673623848764,0.0002,19270.0,19268.0,0.53520794]
[1673623849012,0.0002,19270.0,19269.0,1.005569]
[1673623849503,0.0002,19270.0,19269.0,0.943869]
[1673623849748,0.11046,19270.0,19269.0,0.32297435]
[1673623849990,0.08702,19270.0,19269.0,0.3210457]
[1673623850251,0.08702,19270.0,19268.0,0.60344463]
[1673623850503,1.11722512,19269.0,19268.0,0.014]
[1673623850753,1.11722512,19269.0,19268.0,0.01020374]
[1673623850754,0.59700672,19269.0,19268.0,0.01020374]
[1673623851005,0.59700672,19269.0,19264.0,0.77292742]
[1673623851265,0.011,19270.0,19266.0,0.680745]
[1673623851512,0.518824,19275.0,19267.0,0.424822]
[1673623851513,0.1,19274.0,19267.0,0.424822]
[1673623851771,0.136,19269.0,19268.0,0.844799]
[1673623852016,0.59700672,19270.0,19268.0,0.518977]
[1673623852262,0.59700672,19272.0,19269.0,0.424822]
[1673623852517,0.0002,19271.0,19270.0,1.57300894]
[1673623852757,0.0002,19271.0,19270.0,1.362704]
[1673623853010,0.0002,19271.0,19270.0,1.83400894]
[1673623853256,0.0002,19271.0,19270.0,1.84250894]
[1673623853514,0.016,19274.0,19270.0,1.632204]
[1673623853799,1.28043848,19281.0,19273.0,0.9464227]
[1673623854048,1.28043848,19281.0,19279.0,0.1617]
[1673623854291,1.28043848,19281.0,19277.0,0.25936]
[1673623854292,1.28043848,19281.0,19280.0,0.53512694]
[1673623854538,1.82878222,19281.0,19280.0,0.53492694]
[1673623854781,1.29343848,19281.0,19280.0,0.53492694]
[1673623855028,1.28043848,19281.0,19280.0,1.05699579]
[1673623855272,1.28043848,19281.0,19280.0,0.94969085]
[1673623855520,1.28043848,19281.0,19280.0,0.94669085]
[1673623855781,1.28043848,19281.0,19280.0,0.845142]
[1673623856025,1.41543848,19281.0,19280.0,1.5367047]
[1673623856283,1.28043848,19281.0,19280.0,1.02623808]
[1673623856522,1.41543848,19281.0,19280.0,1.72933831]
[1673623856739,1.41543848,19281.0,19280.0,0.597322]
[1673623857275,1.41543848,19281.0,19280.0,0.594322]
[1673623857527,1.19123148,19281.0,19280.0,0.617322]
[1673623857777,1.17563148,19281.0,19280.0,1.03150662]
[1673623858043,1.18663148,19281.0,19280.0,1.51620662]
[1673623858288,1.16463148,19281.0,19280.0,1.49320662]
[1673623858534,1.16463148,19281.0,19280.0,0.619022]
[1673623858535,1.17863148,19281.0,19280.0,0.619022]
[1673623858789,1.17863148,19281.0,19280.0,0.95304104]
[1673623858790,1.16463148,19281.0,19280.0,0.95304104]
[1673623859300,1.68029557,19281.0,19280.0,0.348822]
[1673623859560,1.68029557,19281.0,19280.0,0.024]
[1673623859561,1.58383557,19281.0,19280.0,0.024]
[1673623859813,0.05500662,19280.0,19279.0,0.58515021]
[1673623860068,0.05500662,19280.0,19277.0,0.518746]
[1673623860322,0.05500662,19280.0,19279.0,0.261]
[1673623860567,0.05500662,19280.0,19279.0,0.585822]
[1673623860830,0.05448237,19280.0,19279.0,0.585822]
[1673623861078,0.06948237,19280.0,19279.0,0.594322]
[1673623861580,0.16494237,19280.0,19279.0,0.99563084]
[1673623861826,0.06948237,19280.0,19279.0,0.346822]
[1673623862328,0.60148921,19280.0,19279.0,0.022]
[1673623862831,0.50148921,19280.0,19279.0,0.022]
[1673623863077,0.06948237,19280.0,19279.0,0.022]
[1673623863328,0.05448237,19280.0,19279.0,0.67644526]
[1673623863590,0.72326753,19280.0,19279.0,0.324822]
[1673623863851,0.60779287,19280.0,19276.0,0.51448325]
[1673623864096,0.21046,19279.0,19276.0,0.51448325]
[1673623864358,0.11046,19279.0,19276.0,0.51448325]
[1673623864600,0.11046,19278.0,19273.0,0.66183627]
[1673623864846,0.629221,19277.0,19273.0,0.66183627]
[1673623865095,0.629221,19277.0,19271.0,0.55807804]
[1673623865096,0.11046,19276.0,19271.0,0.55807804]
[1673623865353,0.72928,19275.0,19271.0,0.55807804]
[1673623865604,0.72928,19275.0,19269.0,0.67967055]
[1673623865605,0.41046,19274.0,19269.0,0.67967055]
[1673623865864,0.11046,19274.0,19271.0,0.61238982]
[1673623866112,0.61882,19275.0,19271.0,0.61238982]
[1673623866364,0.72928,19275.0,19271.0,0.61238982]
[1673623866865,1.2555127,19275.0,19269.0,0.00019]
[1673623867127,1.1726927,19274.0,19269.0,0.21049494]
[1673623867365,1.1726927,19274.0,19269.0,0.00019]
[1673623867366,0.21046,19273.0,19269.0,0.00019]
[1673623867615,0.729333,19273.0,19267.0,0.70139324]
[1673623867869,0.11046,19273.0,19268.0,1.24834727]
[1673623868124,0.11046,19273.0,19269.0,1.88182133]
[1673623868371,0.134,19273.0,19270.0,0.424822]
[1673623868617,0.134,19273.0,19271.0,0.324822]
[1673623868861,0.134,19273.0,19268.0,0.518981]
[1673623869112,0.21046,19272.0,19267.0,0.65465203]
[1673623869360,0.11046,19271.0,19267.0,0.65465203]
[1673623869604,0.11046,19271.0,19266.0,0.619235]
[1673623869859,0.49324723,19270.0,19267.0,0.69626317]
[1673623870617,0.53282,19270.0,19266.0,0.65603148]
[1673623870877,0.42236,19270.0,19267.0,0.67117254]
[1673623871122,0.1,19269.0,19266.0,0.00019]
[1673623871373,0.21046,19269.0,19266.0,0.68203768]
[1673623871698,0.41046,19268.0,19261.0,0.52338619]
[1673623871886,0.5262327,19267.0,19262.0,0.54729136]
[1673623872123,0.1,19266.0,19261.0,0.10421319]
[1673623872373,0.45615742,19266.0,19262.0,0.65104701]
[1673623872618,0.97521142,19266.0,19262.0,0.65104701]
[1673623872883,0.619054,19266.0,19261.0,0.00421319]
[1673623873147,0.7366927,19265.0,19261.0,0.00421319]
[1673623873391,1.6749087,19264.0,19261.0,0.00421319]
[1673623873640,0.1,19263.0,19261.0,0.00421319]
[1673623873892,0.729608,19263.0,19261.0,0.00421319]
[1673623874140,0.519148,19263.0,19261.0,0.00421319]
[1673623874667,0.3552716,19262.0,19261.0,0.00421319]
[1673623875680,0.00011,19265.0,19261.0,0.28570813]
[1673623875930,0.02271423,19262.0,19261.0,0.23710319]
[1673623876183,0.02271423,19262.0,19261.0,1.70876219]
[1673623876439,0.15112438,19262.0,19261.0,2.7470267]
[1673623876725,0.15112438,19262.0,19261.0,2.5768267]
[1673623876726,0.01512438,19262.0,19261.0,2.5768267]
[1673623876949,0.01512438,19262.0,19261.0,1.53856219]
[1673623877199,0.01512438,19262.0,19261.0,1.87199961]
[1673623877439,0.01512438,19262.0,19261.0,1.35283661]
[1673623877700,0.19640438,19262.0,19261.0,0.32903519]
[1673623877944,0.01512438,19262.0,19261.0,0.07540319]
[1673623878186,0.02612438,19262.0,19261.0,0.50022519]
[1673623878429,0.01512438,19262.0,19261.0,0.50022519]
[1673623878697,0.15012438,19262.0,19261.0,0.50022519]
[1673623878949,0.01512438,19262.0,19261.0,0.50022519]
[1673623879210,0.10212438,19262.0,19261.0,0.50022519]
[1673623879741,0.10212438,19262.0,19261.0,0.42903519]
[1673623880004,0.10212438,19262.0,19261.0,1.12154059]
[1673623880254,0.10212438,19262.0,19261.0,0.42903519]
[1673623880509,0.10212438,19262.0,19261.0,0.63934013]
[1673623880748,4.38e-06,19262.0,19261.0,1.94574939]
[1673623881004,0.43193696,19271.0,19262.0,5.562e-05]
[1673623881261,0.3953187,19272.0,19268.0,0.1617]
[1673623881509,0.31429717,19271.0,19269.0,1.05408894]
[1673623881785,0.18304,19274.0,19267.0,0.519018]
[1673623882047,0.33382224,19267.0,19266.0,0.514031]
[1673623882292,0.11046,19267.0,19262.0,0.18005562]
[1673623882533,0.11046,19267.0,19262.0,1.17608919]
[1673623882777,0.11046,19266.0,19262.0,0.65693719]
[1673623883046,0.11046,19265.0,19263.0,0.69934717]
[1673623883290,0.619026,19267.0,19263.0,0.69934717]
[1673623883551,0.729486,19267.0,19261.0,0.00421319]
[1673623883795,0.11046,19266.0,19261.0,0.00421319]
[1673623884042,1.7748707,19265.0,19261.0,0.00421319]
[1673623884292,0.9366927,19264.0,19261.0,0.00421319]
[1673623884545,0.9366927,19264.0,19262.0,0.008]
[1673623884546,1.6749507,19263.0,19262.0,0.008]
[1673623884786,1.8644907,19263.0,19261.0,0.00421319]
[1673623885028,0.9262327,19262.0,19261.0,0.01221319]
[1673623885281,0.1,19262.0,19261.0,0.00421319]
[1673623885791,0.093,19263.0,19262.0,0.57227102]
[1673623886294,0.32667488,19264.0,19262.0,0.57227102]
[1673623886541,0.03474,19264.0,19261.0,0.01221319]
[1673623886795,0.5609727,19263.0,19261.0,0.01221319]
[1673623887052,0.619156,19262.0,19261.0,0.01221319]
[1673623887300,0.96083675,19262.0,19261.0,0.01221319]
[1673623887537,0.519152,19263.0,19261.0,0.01221319]
[1673623888046,0.1,19262.0,19261.0,0.01221319]
[1673623888292,0.529905,19262.0,19261.0,0.01221319]
[1673623888540,0.33308821,19262.0,19261.0,0.01221319]
[1673623889796,0.33308821,19262.0,19261.0,0.00421319]
[1673623890038,0.55246482,19262.0,19261.0,0.00421319]
[1673623890286,1.3801287,19262.0,19261.0,0.00421319]
[1673623890570,1.3801287,19262.0,19261.0,0.00221319]
[1673623890571,1.4383887,19262.0,19261.0,0.00221319]
[1673623890834,0.1,19261.0,19260.0,0.00305343]
[1673623891100,2.39513666,19261.0,19260.0,0.00305343]
[1673623891361,1.9645987,19261.0,19260.0,5.343e-05]
[1673623891607,0.1,19260.0,19258.0,0.00421319]
[1673623891885,1.038474,19259.0,19258.0,0.00421319]
[1673623892362,1.138474,19259.0,19258.0,0.00421319]
[1673623892617,1.9647067,19259.0,19258.0,0.00421319]
[1673623893108,2.32410047,19259.0,19258.0,0.01221319]
[1673623893351,1.7657067,19259.0,19258.0,0.01028217]
[1673623893592,1.62084988,19259.0,19258.0,0.01028217]
[1673623893849,1.7657067,19259.0,19258.0,0.01028217]
[1673623894093,2.0657067,19259.0,19258.0,0.01028217]
[1673623894348,2.0657067,19259.0,19258.0,0.00839043]
[1673623894607,0.1,19258.0,19256.0,3.00421319]
[1673623894852,0.7803425,19257.0,19256.0,3.00421319]
[1673623895099,0.1,19256.0,19255.0,0.00370774]
[1673623895351,1.83794835,19256.0,19255.0,0.00370774]
[1673623895593,1.83794835,19256.0,19254.0,0.00279416]
[1673623895594,2.07398313,19256.0,19254.0,0.00279416]
[1673623895844,1.14502775,19255.0,19254.0,0.00279416]
[1673623896092,3.00201275,19255.0,19254.0,9.416e-05]
[1673623896349,0.14845809,19252.0,19251.0,0.00019]
[1673623896595,2.26770879,19252.0,19251.0,0.00019]
[1673623896855,0.1,19251.0,19244.0,0.1]
[1673623897099,0.91725244,19250.0,19244.0,0.1]
[1673623897346,2.57493419,19249.0,19244.0,0.1]
[1673623897590,0.8609727,19248.0,19242.0,2.6261]
[1673623897839,0.1,19246.0,19243.0,0.1]
[1673623898087,1.07397,19245.0,19241.0,0.67665698]
[1673623898342,1.00832,19245.0,19242.0,0.1]
[1673623898852,1.00832,19245.0,19243.0,0.5956649]
[1673623899350,1.14332,19245.0,19243.0,0.5956649]
[1673623899594,1.00832,19245.0,19241.0,0.52557736]
[1673623899857,0.1,19244.0,19241.0,0.52538736]
[1673623900102,0.488705,19245.0,19243.0,0.68815909]
[1673623900340,0.135,19245.0,19240.0,0.40545118]
[1673623900581,0.49846996,19245.0,19241.0,0.70690831]
[1673623900818,0.4876191,19244.0,19241.0,0.70690831]
[1673623901305,1.0072641,19244.0,19241.0,0.70690831]
[1673623901570,0.5262327,19243.0,19240.0,0.00307624]
[1673623901817,0.1,19241.0,19240.0,0.00307624]
[1673623902075,1.1459557,19241.0,19240.0,0.00307624]
[1673623902577,1.6076557,19241.0,19238.0,0.00470109]
[1673623902826,1.559088,19242.0,19238.0,0.00470109]
[1673623902827,0.519696,19242.0,19240.0,0.51530123]
[1673623903070,0.136,19241.0,19238.0,0.21500603]
[1673623903318,1.0459827,19240.0,19238.0,0.00470109]
[1673623903561,1.0459827,19240.0,19236.0,0.00380684]
[1673623903810,1.0459827,19240.0,19237.0,0.1]
[1673623904054,0.5262327,19239.0,19237.0,0.65530745]
[1673623904304,0.5262327,19239.0,19236.0,0.00380684]
[1673623904305,1.0460367,19238.0,19236.0,0.00380684]
[1673623904563,0.5262327,19237.0,19236.0,0.00380684]
[1673623904808,1.1460637,19237.0,19236.0,0.00380684]
[1673623905053,1.4460637,19237.0,19236.0,0.00380684]
[1673623905307,0.009,19238.0,19237.0,0.52499307]
[1673623905560,1.745593,19239.0,19237.0,0.52499307]
[1673623905561,0.0002,19239.0,19237.0,0.52499307]
[1673623905810,0.0002,19239.0,19236.0,0.00380684]
[1673623905811,0.07982,19237.0,19236.0,0.57871079]
[1673623906054,0.07082,19237.0,19236.0,0.00380684]
[1673623906291,0.082,19238.0,19237.0,0.1]
[1673623906549,1.15542979,19238.0,19236.0,0.00380684]
[1673623906817,0.5352327,19237.0,19236.0,0.00380684]
[1673623907069,1.0550637,19237.0,19236.0,0.00380684]
[1673623907807,0.519831,19237.0,19236.0,0.00380684]
[1673623908055,1.20647718,19238.0,19236.0,0.51162272]
[1673623908304,0.519796,19239.0,19236.0,0.51181733]
[1673623908546,0.009,19237.0,19236.0,0.72212227]
[1673623908803,0.009,19237.0,19236.0,0.07519145]
[1673623909063,0.009,19237.0,19236.0,0.32882345]
[1673623909316,0.64463779,19240.0,19237.0,0.60708122]
[1673623909557,0.008,19239.0,19238.0,0.32501659]
[1673623909808,0.0002,19239.0,19238.0,0.63532153]
[1673623910055,0.0002,19239.0,19238.0,1.10632059]
[1673623910561,0.0002,19239.0,19238.0,0.944626]
[1673623911049,0.35544911,19244.0,19238.0,0.944626]
[1673623911293,0.134,19239.0,19238.0,1.0485403]
[1673623911546,0.134,19239.0,19238.0,0.944626]
[1673623911794,0.01695,19239.0,19238.0,0.944626]
[1673623912043,0.45661099,19243.0,19238.0,0.944626]
[1673623912283,0.1,19246.0,19239.0,0.94162651]
[1673623912284,0.58252027,19242.0,19239.0,0.94162651]
[1673623912529,0.519697,19242.0,19238.0,0.1]
[1673623912776,0.076,19239.0,19238.0,0.107]
[1673623913017,0.6139283,19242.0,19239.0,0.52741709]
[1673623913290,0.6139283,19242.0,19240.0,0.21030494]
[1673623913551,0.0002,19243.0,19240.0,0.31030494]
[1673623914044,0.61375407,19243.0,19240.0,0.1]
[1673623914290,0.61375407,19243.0,19240.0,0.31030494]
[1673623914291,0.60775407,19243.0,19240.0,0.31030494]
[1673623914543,0.075,19242.0,19240.0,0.109]
[1673623914785,0.60775407,19243.0,19240.0,0.1]
[1673623915025,0.61855407,19243.0,19240.0,0.1]
[1673623915281,1.17072241,19243.0,19237.0,0.1]
[1673623915523,0.65383315,19242.0,19237.0,0.1]
[1673623915787,0.519737,19241.0,19237.0,0.1]
[1673623916034,0.519737,19241.0,19237.0,0.70119806]
[1673623916536,0.55811878,19240.0,19236.0,0.68997382]
[1673623916776,0.519782,19239.0,19236.0,0.10380684]
[1673623917310,1.039559,19239.0,19236.0,0.10380684]
[1673623917558,1.039559,19239.0,19236.0,0.00380684]
[1673623918066,1.050559,19239.0,19236.0,0.00380684]
[1673623918325,1.25399824,19238.0,19236.0,0.00380684]
[1673623918576,2.63889106,19237.0,19236.0,0.00380684]
[1673623918821,2.81349124,19237.0,19236.0,0.00780684]
[1673623919064,1.59984526,19237.0,19236.0,0.00780684]
[1673623919309,2.37716032,19237.0,19236.0,0.00780684]
[1673623919558,2.12607796,19237.0,19236.0,0.00780684]
[1673623919805,2.42607796,19237.0,19236.0,0.00780684]
[1673623920047,2.42607796,19237.0,19235.0,0.0053621]
[1673623920306,2.42607796,19237.0,19235.0,0.00118892]
[1673623920307,0.9262327,19236.0,19235.0,0.00118892]
[1673623920555,2.4340665,19236.0,19235.0,0.00118892]
[1673623920809,2.7406343,19236.0,19235.0,0.00118892]
[1673623921273,2.4340665,19236.0,19235.0,0.00118892]
[1673623921839,3.03406651,19236.0,19235.0,0.00118892]
[1673623922099,2.5351174,19236.0,19235.0,0.21149386]
[1673623922345,1.27490713,19236.0,19235.0,0.00118892]
[1673623922587,1.175716,19236.0,19235.0,0.00118892]
[1673623922846,2.12971424,19236.0,19235.0,0.00118892]
[1673623923331,1.5659487,19236.0,19235.0,0.00118892]
[1673623923585,2.54079136,19236.0,19235.0,0.00118892]
[1673623923833,2.40579136,19236.0,19235.0,0.00118892]
[1673623924136,3.61967863,19236.0,19235.0,0.00118892]
[1673623924422,4.21967863,19236.0,19235.0,0.00118892]
[1673623924634,0.00176046,19233.0,19230.0,0.0053621]
[1673623924875,2.0861307,19232.0,19230.0,0.0053621]
[1673623925151,0.8262327,19231.0,19230.0,0.0053621]
[1673623925390,0.519993,19231.0,19230.0,0.0053621]
[1673623925876,0.819993,19231.0,19230.0,0.0053621]
[1673623926128,1.85728179,19231.0,19230.0,0.0053621]
[1673623926380,2.18349356,19231.0,19230.0,0.0053621]
[1673623926646,2.28349356,19231.0,19230.0,0.0053621]
[1673623926886,3.15872922,19231.0,19230.0,0.0053621]
[1673623927134,2.35726087,19231.0,19230.0,0.00344251]
[1673623927391,2.4834971,19231.0,19229.0,0.03616312]
[1673623927642,2.4834971,19231.0,19229.0,0.03230144]
[1673623927643,0.3,19230.0,19229.0,0.03230144]
[1673623927894,2.17395033,19230.0,19229.0,0.03039583]
[1673623928147,2.17395033,19230.0,19228.0,0.00342053]
[1673623928148,0.1,19229.0,19228.0,0.00342053]
[1673623928395,3.0915958,19229.0,19225.0,0.0275]
[1673623928638,0.1617,19227.0,19225.0,0.0225]
[1673623928888,0.1617,19227.0,19225.0,0.0175]
[1673623928889,2.51369054,19226.0,19225.0,0.0175]
[1673623929136,2.28745784,19226.0,19225.0,0.0175]
[1673623929382,2.81369054,19226.0,19225.0,0.0175]
[1673623930123,2.69828353,19226.0,19225.0,0.0175]
[1673623930381,4.04629278,19226.0,19225.0,0.0175]
[1673623930626,4.75479279,19226.0,19225.0,0.0175]
[1673623930909,4.89179279,19226.0,19225.0,0.0175]
[1673623931150,4.54378354,19226.0,19225.0,0.0175]
[1673623931667,4.23528354,19226.0,19225.0,0.0175]
[1673623931908,3.25877313,19226.0,19225.0,0.0175]
[1673623932154,1.87725601,19226.0,19225.0,0.0175]
[1673623932651,0.83700001,19226.0,19225.0,0.22780494]
[1673623932903,0.137,19226.0,19225.0,1.08020333]
[1673623933152,0.137,19226.0,19225.0,0.55262694]
[1673623933402,0.137,19226.0,19225.0,0.95160469]
[1673623933644,0.58484199,19227.0,19225.0,0.95160469]
[1673623933900,0.58484199,19227.0,19226.0,0.486322]
[1673623934148,0.58484199,19227.0,19226.0,0.324822]
[1673623934403,0.32288809,19229.0,19226.0,0.324822]
[1673623934648,0.32288809,19229.0,19225.0,0.11728025]
[1673623934893,0.60078064,19228.0,19226.0,0.21030494]
[1673623935146,0.00176046,19233.0,19227.0,0.70769925]
[1673623935390,0.00176046,19233.0,19229.0,0.1]
[1673623935630,0.00176046,19233.0,19230.0,0.53512694]
[1673623935631,0.47137807,19232.0,19230.0,0.53512694]
[1673623935881,0.00176046,19233.0,19231.0,0.53512694]
[1673623936134,0.65621286,19232.0,19229.0,0.1]
[1673623936376,0.65621286,19232.0,19225.0,0.27898025]
[1673623936377,0.06599733,19232.0,19225.0,0.27898025]
[1673623936633,0.1,19229.0,19225.0,0.11728025]
[1673623936883,0.53187809,19228.0,19225.0,0.73927063]
[1673623937134,0.94713284,19229.0,19225.0,0.01728025]
[1673623937389,0.6870327,19227.0,19225.0,0.01728025]
[1673623937643,0.6262327,19226.0,19225.0,0.01728025]
[1673623937909,1.040256,19226.0,19225.0,0.624282]
[1673623938143,0.83672954,19228.0,19225.0,0.02628025]
[1673623938389,0.53315927,19228.0,19226.0,0.1]
[1673623938632,0.53315927,19228.0,19225.0,0.64709517]
[1673623938881,0.80054292,19229.0,19225.0,0.02699188]
[1673623939142,0.49100001,19228.0,19225.0,0.89831448]
[1673623939400,0.49100001,19228.0,19225.0,0.01799188]
[1673623939653,0.93674292,19229.0,19225.0,0.01899188]
[1673623939896,0.41668392,19229.0,19226.0,0.21030494]
[1673623940137,0.50124074,19228.0,19226.0,0.21030494]
[1673623940394,0.34639016,19228.0,19226.0,0.1]
[1673623940638,0.29468392,19229.0,19226.0,0.1]
[1673623940885,0.28068392,19229.0,19227.0,0.324822]
[1673623941147,0.0002,19229.0,19228.0,0.324822]
[1673623941387,0.4265136,19230.0,19229.0,0.1]
[1673623941893,0.48788636,19228.0,19225.0,0.60043168]
[1673623942144,0.520049,19229.0,19225.0,0.01799188]
[1673623942393,0.1,19228.0,19225.0,0.01799188]
[1673623942636,0.1,19228.0,19226.0,0.008]
[1673623942637,1.040202,19227.0,19226.0,0.008]
[1673623943143,1.340202,19227.0,19226.0,0.008]
[1673623943384,1.340202,19227.0,19225.0,0.01799188]
[1673623943385,0.07082,19226.0,19225.0,0.5738154]
[1673623943638,1.51931619,19229.0,19225.0,0.5748154]
[1673623943886,0.39895655,19227.0,19225.0,0.90831334]
[1673623944130,0.53595655,19227.0,19226.0,0.001]
[1673623944384,0.69895655,19227.0,19225.0,0.01328025]
[1673623944626,0.3,19226.0,19225.0,0.01328025]
[1673623944871,1.21906355,19227.0,19225.0,0.01328025]
[1673623945126,0.0002,19229.0,19226.0,0.54175724]
[1673623945393,0.0002,19229.0,19227.0,0.63512694]
[1673623945638,0.115,19229.0,19228.0,0.324822]
[1673623945891,0.519982,19232.0,19228.0,0.53512694]
[1673623946158,0.47670919,19233.0,19229.0,0.53512694]
[1673623946453,0.47670919,19233.0,19230.0,0.63512694]
[1673623946691,0.48336721,19230.0,19227.0,0.1]
[1673623946936,0.4504068,19229.0,19227.0,0.1]